[Event "Titled Tuesday Blitz April 26 Early 2022"]
[White "Martic, Ivan"]
[Black "Banusz, Tamas"]
[WhiteFideId "929301"]
[BlackFideId "722413"]
[WhiteElo "2317"]
[BlackElo "2602"]
[Result "0-1"]
[Round "02"]
[TimeControl "180+1"]
[Date "2022.04.26"]
[WhiteClock "0:00:05"]
[BlackClock "0:00:11"]

1. d4 {[%clk 0:02:52]}  d5 {[%clk 0:02:59]} 2. c4 {[%clk 0:02:50]}  c6 {[%clk 0:02:59]} 3. Nc3 {[%clk 0:02:49]}  Nf6 {[%clk 0:02:59]} 4. e3 {[%clk 0:02:50]}  e6 {[%clk 0:03:00]} 5. Nf3 {[%clk 0:02:48]}  a6 {[%clk 0:03:00]} 6. c5 {[%clk 0:02:45]}  Nbd7 {[%clk 0:02:58]} 7. b4 {[%clk 0:02:42]}  g6 {[%clk 0:02:58]} 8. Bd3 {[%clk 0:02:40]}  Bg7 {[%clk 0:02:58]} 9. O-O {[%clk 0:02:40]}  O-O {[%clk 0:02:58]} 10. Bb2 {[%clk 0:02:36]}  Qe7 {[%clk 0:02:57]} 11. Na4 {[%clk 0:02:18]}  Ne4 {[%clk 0:02:55]} 12. Qc2 {[%clk 0:02:16]}  f5 {[%clk 0:02:54]} 13. Ne5 {[%clk 0:02:14]}  Nxe5 {[%clk 0:02:36]} 14. dxe5 {[%clk 0:02:15]}  Bd7 {[%clk 0:02:36]} 15. f3 {[%clk 0:02:10]}  Ng5 {[%clk 0:02:36]} 16. Nb6 {[%clk 0:02:09]}  Rad8 {[%clk 0:02:32]} 17. f4 {[%clk 0:01:53]}  Ne4 {[%clk 0:02:31]} 18. Bd4 {[%clk 0:01:53]}  Kh8 {[%clk 0:02:28]} 19. a4 {[%clk 0:01:52]}  Rg8 {[%clk 0:02:09]} 20. b5 {[%clk 0:01:41]}  axb5 {[%clk 0:02:07]} 21. axb5 {[%clk 0:01:42]}  cxb5 {[%clk 0:02:03]} 22. Ra7 {[%clk 0:01:41]}  Bc6 {[%clk 0:02:01]} 23. Rc1 {[%clk 0:01:33]}  g5 {[%clk 0:01:59]} 24. Qb2 {[%clk 0:01:10]}  gxf4 {[%clk 0:01:56]} 25. exf4 {[%clk 0:01:11]}  Bh6 {[%clk 0:01:56]} 26. Rf1 {[%clk 0:01:08]}  Rg4 {[%clk 0:01:49]} 27. Be3 {[%clk 0:00:54]}  Rdg8 {[%clk 0:01:48]} 28. Bxe4 {[%clk 0:00:45]}  dxe4 {[%clk 0:01:32]} 29. Rf2 {[%clk 0:00:44]}  Rd8 {[%clk 0:01:27]} 30. Rd2 {[%clk 0:00:43]}  Bxf4 {[%clk 0:01:02]} 31. Bxf4 {[%clk 0:00:37]}  Qxc5+ {[%clk 0:00:36]} 32. Kh1 {[%clk 0:00:25]}  Qxb6 {[%clk 0:00:34]} 33. Be3 {[%clk 0:00:18]}  Qc7 {[%clk 0:00:28]} 34. Rd6 {[%clk 0:00:15]}  Rdg8 {[%clk 0:00:24]} 35. h3 {[%clk 0:00:10]}  Rxg2 {[%clk 0:00:19]} 36. Qxg2 {[%clk 0:00:09]}  Rxg2 {[%clk 0:00:20]} 37. Kxg2 {[%clk 0:00:10]}  f4 {[%clk 0:00:18]} 38. Bxf4 {[%clk 0:00:09]}  e3+ {[%clk 0:00:17]} 39. Kf1 {[%clk 0:00:10]}  Qf7 {[%clk 0:00:16]} 40. Ra8+ {[%clk 0:00:08]}  Kg7 {[%clk 0:00:16]} 41. Rd4 {[%clk 0:00:08]}  Qf5 {[%clk 0:00:16]} 42. Rc8 {[%clk 0:00:06]}  Qxh3+ {[%clk 0:00:09]} 43. Ke2 {[%clk 0:00:07]}  Qf3+ {[%clk 0:00:09]} 44. Ke1 {[%clk 0:00:06]}  Qf2+ {[%clk 0:00:10]} 45. Kd1 {[%clk 0:00:07]}  e2+ {[%clk 0:00:10]} 46. Kc1 {[%clk 0:00:06]}  e1=Q+ {[%clk 0:00:11]} 47. Rd1 {[%clk 0:00:05]}  Qc3+ {[%clk 0:00:11]} 0-1


[Site "https://www.chess.com"]

[Event "Titled Tuesday Blitz April 26 Early 2022"]
[White "Matamoros Franco, Carlos S."]
[Black "Svane, Frederik"]
[WhiteFideId "3600017"]
[BlackFideId "12923044"]
[WhiteElo "2532"]
[BlackElo "2828"]
[Result "0-1"]
[Round "02"]
[TimeControl "180+1"]
[Date "2022.04.26"]
[WhiteClock "0:00:52"]
[BlackClock "0:01:09"]

1. Nf3 {[%clk 0:02:59]}  d5 {[%clk 0:02:57]} 2. g3 {[%clk 0:02:58]}  b6 {[%clk 0:02:57]} 3. Bg2 {[%clk 0:02:56]}  Bb7 {[%clk 0:02:58]} 4. O-O {[%clk 0:02:47]}  Nd7 {[%clk 0:02:58]} 5. c4 {[%clk 0:02:39]}  dxc4 {[%clk 0:02:57]} 6. Na3 {[%clk 0:02:38]}  Ngf6 {[%clk 0:02:48]} 7. Nxc4 {[%clk 0:02:36]}  g6 {[%clk 0:02:47]} 8. b3 {[%clk 0:02:31]}  Bg7 {[%clk 0:02:47]} 9. Bb2 {[%clk 0:02:31]}  O-O {[%clk 0:02:48]} 10. b4 {[%clk 0:02:10]}  Rc8 {[%clk 0:02:06]} 11. Rc1 {[%clk 0:02:01]}  c5 {[%clk 0:01:58]} 12. bxc5 {[%clk 0:01:59]}  Nxc5 {[%clk 0:01:58]} 13. d3 {[%clk 0:01:53]}  Qd7 {[%clk 0:01:42]} 14. Nce5 {[%clk 0:01:22]}  Qb5 {[%clk 0:01:37]} 15. Ba1 {[%clk 0:01:19]}  Rfd8 {[%clk 0:01:34]} 16. Nd4 {[%clk 0:01:09]}  Qa6 {[%clk 0:01:29]} 17. Ndc6 {[%clk 0:01:05]}  Re8 {[%clk 0:01:24]} 18. Nb4 {[%clk 0:00:59]}  Qb5 {[%clk 0:01:09]} 19. Bxb7 {[%clk 0:00:55]}  Nxb7 {[%clk 0:01:10]} 20. a4 {[%clk 0:00:52]}  Qxb4 {[%clk 0:01:09]} 0-1


[Site "https://www.chess.com"]

[Event "Titled Tuesday Blitz April 26 Early 2022"]
[White "Meduri, Aakaash"]
[Black "Korchmar, Vasiliy"]
[WhiteFideId "2032252"]
[BlackFideId "24131750"]
[WhiteElo "2096"]
[BlackElo "2370"]
[Result "0-1"]
[Round "02"]
[TimeControl "180+1"]
[Date "2022.04.26"]
[WhiteClock "0:00:01"]
[BlackClock "0:00:20"]

1. d4 {[%clk 0:03:00]}  Nf6 {[%clk 0:02:58]} 2. Bf4 {[%clk 0:02:59]}  d5 {[%clk 0:02:58]} 3. e3 {[%clk 0:02:59]}  c5 {[%clk 0:02:58]} 4. dxc5 {[%clk 0:02:59]}  Nc6 {[%clk 0:02:55]} 5. Bb5 {[%clk 0:02:58]}  e6 {[%clk 0:02:50]} 6. b4 {[%clk 0:02:58]}  a5 {[%clk 0:02:47]} 7. c3 {[%clk 0:02:54]}  Bd7 {[%clk 0:02:44]} 8. Qb3 {[%clk 0:02:51]}  Ne4 {[%clk 0:02:34]} 9. Nf3 {[%clk 0:02:05]}  axb4 {[%clk 0:02:34]} 10. Bxc6 {[%clk 0:01:52]}  Bxc6 {[%clk 0:02:32]} 11. cxb4 {[%clk 0:01:52]}  Bb5 {[%clk 0:02:26]} 12. a4 {[%clk 0:01:45]}  Bc4 {[%clk 0:02:26]} 13. Qb2 {[%clk 0:01:45]}  Be7 {[%clk 0:02:24]} 14. Nc3 {[%clk 0:01:28]}  Bf6 {[%clk 0:02:22]} 15. Be5 {[%clk 0:01:28]}  Bxe5 {[%clk 0:02:15]} 16. Nxe5 {[%clk 0:01:29]}  Nxc3 {[%clk 0:01:29]} 17. Nxc4 {[%clk 0:01:07]}  Nxa4 {[%clk 0:01:23]} 18. Qxg7 {[%clk 0:01:05]}  Ke7 {[%clk 0:01:14]} 19. Nd6 {[%clk 0:00:52]}  Qf8 {[%clk 0:01:08]} 20. Qd4 {[%clk 0:00:40]}  Rg8 {[%clk 0:00:53]} 21. g3 {[%clk 0:00:26]}  b6 {[%clk 0:00:53]} 22. O-O {[%clk 0:00:21]}  bxc5 {[%clk 0:00:50]} 23. bxc5 {[%clk 0:00:22]}  Qg7 {[%clk 0:00:50]} 24. Qb4 {[%clk 0:00:15]}  Rgb8 {[%clk 0:00:44]} 25. Qa3 {[%clk 0:00:16]}  Qc3 {[%clk 0:00:29]} 26. Qxc3 {[%clk 0:00:10]}  Nxc3 {[%clk 0:00:30]} 27. Kg2 {[%clk 0:00:08]}  Na4 {[%clk 0:00:26]} 28. Rac1 {[%clk 0:00:05]}  Ra5 {[%clk 0:00:20]} 29. Rfd1 {[%clk 0:00:02]}  Rxc5 {[%clk 0:00:21]} 30. Nb7 {[%clk 0:00:01]}  Rxb7 {[%clk 0:00:20]} 0-1


[Site "https://www.chess.com"]

[Event "Titled Tuesday Blitz April 26 Early 2022"]
[White "Minko, Dmitry"]
[Black "Brodowski, Piotr"]
[WhiteFideId "24188468"]
[BlackFideId "1124480"]
[WhiteElo "1928"]
[BlackElo "2422"]
[Result "0-1"]
[Round "02"]
[TimeControl "180+1"]
[Date "2022.04.26"]
[WhiteClock "0:00:01"]
[BlackClock "0:00:05"]

1. e4 {[%clk 0:03:00]}  c5 {[%clk 0:02:55]} 2. Nf3 {[%clk 0:03:01]}  d6 {[%clk 0:02:46]} 3. d4 {[%clk 0:03:01]}  cxd4 {[%clk 0:02:47]} 4. Nxd4 {[%clk 0:03:01]}  Nf6 {[%clk 0:02:47]} 5. Nc3 {[%clk 0:03:01]}  Nc6 {[%clk 0:02:45]} 6. Bg5 {[%clk 0:02:53]}  Qb6 {[%clk 0:02:41]} 7. Nb3 {[%clk 0:02:50]}  a6 {[%clk 0:02:31]} 8. Qd2 {[%clk 0:02:43]}  e6 {[%clk 0:02:16]} 9. f3 {[%clk 0:02:15]}  Bd7 {[%clk 0:02:07]} 10. O-O-O {[%clk 0:02:08]}  Be7 {[%clk 0:01:58]} 11. Kb1 {[%clk 0:02:06]}  Rc8 {[%clk 0:01:57]} 12. g4 {[%clk 0:02:02]}  Ne5 {[%clk 0:01:52]} 13. Nd4 {[%clk 0:02:00]}  Rxc3 {[%clk 0:01:05]} 14. Qxc3 {[%clk 0:01:58]}  Nxe4 {[%clk 0:01:04]} 15. fxe4 {[%clk 0:01:52]}  Bxg5 {[%clk 0:01:04]} 16. h3 {[%clk 0:01:39]}  O-O {[%clk 0:00:59]} 17. Bg2 {[%clk 0:01:29]}  Rc8 {[%clk 0:00:55]} 18. Qb3 {[%clk 0:01:28]}  Qxb3 {[%clk 0:00:53]} 19. axb3 {[%clk 0:01:21]}  Kf8 {[%clk 0:00:47]} 20. Rhf1 {[%clk 0:01:12]}  Ke7 {[%clk 0:00:47]} 21. Nf3 {[%clk 0:01:07]}  Nxf3 {[%clk 0:00:44]} 22. Bxf3 {[%clk 0:01:08]}  Rc7 {[%clk 0:00:29]} 23. e5 {[%clk 0:01:01]}  dxe5 {[%clk 0:00:16]} 24. Be4 {[%clk 0:01:01]}  g6 {[%clk 0:00:14]} 25. Rd3 {[%clk 0:00:59]}  f5 {[%clk 0:00:13]} 26. gxf5 {[%clk 0:00:35]}  gxf5 {[%clk 0:00:14]} 27. Bg2 {[%clk 0:00:35]}  Bh4 {[%clk 0:00:07]} 28. Bh1 {[%clk 0:00:27]}  e4 {[%clk 0:00:07]} 29. Re3 {[%clk 0:00:26]}  Bc6 {[%clk 0:00:05]} 30. c3 {[%clk 0:00:20]}  Rd7 {[%clk 0:00:04]} 31. Kc2 {[%clk 0:00:20]}  h6 {[%clk 0:00:04]} 32. Re2 {[%clk 0:00:18]}  Bg5 {[%clk 0:00:04]} 33. Rg1 {[%clk 0:00:14]}  Kf6 {[%clk 0:00:03]} 34. Rf1 {[%clk 0:00:09]}  Ke5 {[%clk 0:00:03]} 35. c4 {[%clk 0:00:07]}  Bh4 {[%clk 0:00:03]} 36. Rd1 {[%clk 0:00:07]}  Rxd1 {[%clk 0:00:02]} 37. Kxd1 {[%clk 0:00:08]}  f4 {[%clk 0:00:03]} 38. Rg2 {[%clk 0:00:06]}  Bg5 {[%clk 0:00:02]} 39. h4 {[%clk 0:00:04]}  Bxh4 {[%clk 0:00:03]} 40. Rg8 {[%clk 0:00:04]}  f3 {[%clk 0:00:02]} 41. Rf8 {[%clk 0:00:03]}  Bg5 {[%clk 0:00:03]} 42. Ke1 {[%clk 0:00:03]}  Kd4 {[%clk 0:00:03]} 43. Kf2 {[%clk 0:00:02]}  Bh4+ {[%clk 0:00:04]} 44. Kf1 {[%clk 0:00:03]}  Ke3 {[%clk 0:00:04]} 45. Rf7 {[%clk 0:00:02]}  e5 {[%clk 0:00:04]} 46. Rf5 {[%clk 0:00:02]}  Bg3 {[%clk 0:00:04]} 47. Rf8 {[%clk 0:00:01]}  Bf4 {[%clk 0:00:05]} 0-1


[Site "https://www.chess.com"]

[Event "Titled Tuesday Blitz April 26 Early 2022"]
[White "Miszler, Levente"]
[Black "Antonio, Jorge Carlos"]
[WhiteFideId "763276"]
[BlackFideId "113190"]
[WhiteElo "1966"]
[BlackElo "2247"]
[Result "1-0"]
[Round "02"]
[TimeControl "180+1"]
[Date "2022.04.26"]
[WhiteClock "0:00:05"]
[BlackClock "0:00:09"]

1. Nf3 {[%clk 0:03:00]}  d5 {[%clk 0:02:59]} 2. d4 {[%clk 0:02:57]}  Nf6 {[%clk 0:02:58]} 3. c4 {[%clk 0:02:56]}  c6 {[%clk 0:02:57]} 4. e3 {[%clk 0:02:54]}  Bg4 {[%clk 0:02:56]} 5. h3 {[%clk 0:02:53]}  Bxf3 {[%clk 0:02:56]} 6. Qxf3 {[%clk 0:02:54]}  e6 {[%clk 0:02:54]} 7. Nc3 {[%clk 0:02:53]}  Nbd7 {[%clk 0:02:54]} 8. e4 {[%clk 0:02:51]}  dxe4 {[%clk 0:02:53]} 9. Nxe4 {[%clk 0:02:52]}  Nxe4 {[%clk 0:02:54]} 10. Qxe4 {[%clk 0:02:52]}  Be7 {[%clk 0:02:54]} 11. Bd3 {[%clk 0:02:45]}  Nf6 {[%clk 0:02:53]} 12. Qh4 {[%clk 0:02:45]}  h6 {[%clk 0:02:53]} 13. Be3 {[%clk 0:02:36]}  Nd5 {[%clk 0:02:41]} 14. Qg3 {[%clk 0:02:32]}  Nxe3 {[%clk 0:02:35]} 15. fxe3 {[%clk 0:02:30]}  O-O {[%clk 0:02:34]} 16. O-O {[%clk 0:02:23]}  c5 {[%clk 0:02:31]} 17. Qg4 {[%clk 0:02:13]}  cxd4 {[%clk 0:02:29]} 18. exd4 {[%clk 0:02:14]}  Bf6 {[%clk 0:02:20]} 19. d5 {[%clk 0:02:06]}  exd5 {[%clk 0:02:14]} 20. Qf5 {[%clk 0:02:04]}  Bd4+ {[%clk 0:02:07]} 21. Kh1 {[%clk 0:02:04]}  g6 {[%clk 0:02:03]} 22. Qxd5 {[%clk 0:02:01]}  Qxd5 {[%clk 0:02:01]} 23. cxd5 {[%clk 0:02:02]}  Bxb2 {[%clk 0:02:00]} 24. Rab1 {[%clk 0:02:01]}  Be5 {[%clk 0:01:55]} 25. Rxb7 {[%clk 0:02:01]}  Rad8 {[%clk 0:01:53]} 26. Bc4 {[%clk 0:01:56]}  Bd4 {[%clk 0:01:53]} 27. Bb3 {[%clk 0:01:49]}  Rd6 {[%clk 0:01:53]} 28. Rf4 {[%clk 0:01:43]}  Bb6 {[%clk 0:01:49]} 29. Rc4 {[%clk 0:01:35]}  Re8 {[%clk 0:01:39]} 30. Rc1 {[%clk 0:01:16]}  f5 {[%clk 0:01:34]} 31. Kh2 {[%clk 0:01:00]}  Be3 {[%clk 0:01:30]} 32. Rc2 {[%clk 0:00:57]}  Bf4+ {[%clk 0:01:29]} 33. g3 {[%clk 0:00:57]}  Be3 {[%clk 0:01:12]} 34. Rcc7 {[%clk 0:00:50]}  f4 {[%clk 0:01:06]} 35. Rg7+ {[%clk 0:00:47]}  Kh8 {[%clk 0:01:05]} 36. Rh7+ {[%clk 0:00:44]}  Kg8 {[%clk 0:01:05]} 37. Rbg7+ {[%clk 0:00:37]}  Kf8 {[%clk 0:01:04]} 38. Rf7+ {[%clk 0:00:17]}  Kg8 {[%clk 0:01:03]} 39. Re7 {[%clk 0:00:18]}  Rxe7 {[%clk 0:00:58]} 40. Rxe7 {[%clk 0:00:19]}  g5 {[%clk 0:00:57]} 41. Kg2 {[%clk 0:00:18]}  Kf8 {[%clk 0:00:52]} 42. Rb7 {[%clk 0:00:16]}  Rf6 {[%clk 0:00:42]} 43. Kf3 {[%clk 0:00:14]}  fxg3+ {[%clk 0:00:36]} 44. Kxg3 {[%clk 0:00:14]}  Bf4+ {[%clk 0:00:33]} 45. Kg4 {[%clk 0:00:14]}  Rd6 {[%clk 0:00:31]} 46. Rxa7 {[%clk 0:00:14]}  Be3 {[%clk 0:00:29]} 47. Rh7 {[%clk 0:00:13]}  Rf6 {[%clk 0:00:22]} 48. Rc7 {[%clk 0:00:11]}  Rf4+ {[%clk 0:00:21]} 49. Kh5 {[%clk 0:00:12]}  Rh4+ {[%clk 0:00:19]} 50. Kg6 {[%clk 0:00:12]}  Rxh3 {[%clk 0:00:20]} 51. d6 {[%clk 0:00:10]}  Ke8 {[%clk 0:00:15]} 52. Re7+ {[%clk 0:00:07]}  Kd8 {[%clk 0:00:15]} 53. Be6 {[%clk 0:00:06]}  Bc5 {[%clk 0:00:13]} 54. Rd7+ {[%clk 0:00:05]}  Ke8 {[%clk 0:00:13]} 55. Bxh3 {[%clk 0:00:05]}  g4 {[%clk 0:00:08]} 56. Bxg4 {[%clk 0:00:05]}  h5 {[%clk 0:00:09]} 57. Kxh5 {[%clk 0:00:05]} 1-0


[Site "https://www.chess.com"]

[Event "Titled Tuesday Blitz April 26 Early 2022"]
[White "Moskalenko, Alexander"]
[Black "Stromboli, Ettore"]
[WhiteFideId "4155351"]
[BlackFideId "813761"]
[WhiteElo "2434"]
[BlackElo "2414"]
[Result "1-0"]
[Round "02"]
[TimeControl "180+1"]
[Date "2022.04.26"]
[WhiteClock "0:01:44"]
[BlackClock "0:00:11"]

1. e4 {[%clk 0:03:00]}  e6 {[%clk 0:02:59]} 2. f4 {[%clk 0:02:56]}  f5 {[%clk 0:02:49]} 3. Nc3 {[%clk 0:02:47]}  fxe4 {[%clk 0:02:47]} 4. Nxe4 {[%clk 0:02:48]}  Nf6 {[%clk 0:02:48]} 5. Bd3 {[%clk 0:02:41]}  c5 {[%clk 0:02:41]} 6. Nf3 {[%clk 0:02:39]}  Nc6 {[%clk 0:02:22]} 7. O-O {[%clk 0:02:36]}  Nb4 {[%clk 0:01:49]} 8. Qe2 {[%clk 0:02:11]}  Nxd3 {[%clk 0:01:47]} 9. Qxd3 {[%clk 0:02:12]}  Qb6 {[%clk 0:01:35]} 10. Kh1 {[%clk 0:02:08]}  Be7 {[%clk 0:01:26]} 11. b3 {[%clk 0:02:08]}  O-O {[%clk 0:01:25]} 12. Bb2 {[%clk 0:02:08]}  Qc7 {[%clk 0:01:25]} 13. Nfg5 {[%clk 0:02:07]}  Nxe4 {[%clk 0:01:21]} 14. Qxe4 {[%clk 0:02:04]}  Bxg5 {[%clk 0:01:02]} 15. fxg5 {[%clk 0:02:05]}  Qd6 {[%clk 0:01:00]} 16. g6 {[%clk 0:01:57]}  hxg6 {[%clk 0:00:31]} 17. Qxg6 {[%clk 0:01:54]}  Qe7 {[%clk 0:00:31]} 18. Kg1 {[%clk 0:01:50]}  Rxf1+ {[%clk 0:00:19]} 19. Rxf1 {[%clk 0:01:49]}  b6 {[%clk 0:00:19]} 20. Bxg7 {[%clk 0:01:49]}  Qxg7 {[%clk 0:00:19]} 21. Qe8+ {[%clk 0:01:48]}  Kh7 {[%clk 0:00:19]} 22. Rf7 {[%clk 0:01:49]}  Kg6 {[%clk 0:00:15]} 23. Rxd7+ {[%clk 0:01:46]}  Kf6 {[%clk 0:00:13]} 24. Qd8+ {[%clk 0:01:43]}  Kg6 {[%clk 0:00:11]} 25. Rxg7+ {[%clk 0:01:43]}  Kxg7 {[%clk 0:00:11]} 26. g4 {[%clk 0:01:44]} 1-0


[Site "https://www.chess.com"]

[Event "Titled Tuesday Blitz April 26 Early 2022"]
[White "Ning, Kaiyu"]
[Black "Melikhov, Evgeny V."]
[WhiteFideId "8614750"]
[BlackFideId "4122046"]
[WhiteElo "2013"]
[BlackElo "1931"]
[Result "1-0"]
[Round "02"]
[TimeControl "180+1"]
[Date "2022.04.26"]
[WhiteClock "0:01:07"]
[BlackClock "0:00:16"]

1. d4 {[%clk 0:03:00]}  Nf6 {[%clk 0:02:59]} 2. c4 {[%clk 0:03:00]}  e6 {[%clk 0:02:59]} 3. Nf3 {[%clk 0:03:00]}  d5 {[%clk 0:02:59]} 4. Nc3 {[%clk 0:03:00]}  Bb4 {[%clk 0:02:59]} 5. Qb3 {[%clk 0:02:34]}  Nc6 {[%clk 0:02:56]} 6. e3 {[%clk 0:02:22]}  dxc4 {[%clk 0:02:53]} 7. Bxc4 {[%clk 0:02:22]}  O-O {[%clk 0:02:53]} 8. O-O {[%clk 0:02:22]}  Bd6 {[%clk 0:02:53]} 9. Rd1 {[%clk 0:02:13]}  Na5 {[%clk 0:02:50]} 10. Qa4 {[%clk 0:02:11]}  Nxc4 {[%clk 0:02:50]} 11. Qxc4 {[%clk 0:02:11]}  c6 {[%clk 0:02:40]} 12. e4 {[%clk 0:02:11]}  Bc7 {[%clk 0:02:37]} 13. Bg5 {[%clk 0:02:05]}  h6 {[%clk 0:02:37]} 14. Bh4 {[%clk 0:02:05]}  g5 {[%clk 0:02:22]} 15. Nxg5 {[%clk 0:02:03]}  hxg5 {[%clk 0:02:22]} 16. Bxg5 {[%clk 0:02:03]}  Bxh2+ {[%clk 0:02:06]} 17. Kf1 {[%clk 0:02:03]}  e5 {[%clk 0:01:32]} 18. dxe5 {[%clk 0:01:57]}  Be6 {[%clk 0:01:28]} 19. Qe2 {[%clk 0:01:52]}  Qa5 {[%clk 0:01:21]} 20. Bxf6 {[%clk 0:01:43]}  Bxe5 {[%clk 0:01:21]} 21. Qh5 {[%clk 0:01:39]}  Qa6+ {[%clk 0:01:18]} 22. Kg1 {[%clk 0:01:34]}  Bxf6 {[%clk 0:01:18]} 23. e5 {[%clk 0:01:32]}  Bg7 {[%clk 0:01:17]} 24. Ne4 {[%clk 0:01:32]}  Rfd8 {[%clk 0:01:08]} 25. Nf6+ {[%clk 0:01:29]}  Kf8 {[%clk 0:01:04]} 26. Qh7 {[%clk 0:01:25]}  Qe2 {[%clk 0:00:43]} 27. Rxd8+ {[%clk 0:01:15]}  Rxd8 {[%clk 0:00:42]} 28. Qg8+ {[%clk 0:01:15]}  Ke7 {[%clk 0:00:43]} 29. Qxg7 {[%clk 0:01:16]}  Rd1+ {[%clk 0:00:36]} 30. Rxd1 {[%clk 0:01:15]}  Qxd1+ {[%clk 0:00:36]} 31. Kh2 {[%clk 0:01:15]}  Qd4 {[%clk 0:00:20]} 32. Qg5 {[%clk 0:01:08]}  Kf8 {[%clk 0:00:17]} 33. Qg8+ {[%clk 0:01:06]}  Ke7 {[%clk 0:00:16]} 34. Qe8# {[%clk 0:01:07]} 1-0


[Site "https://www.chess.com"]

[Event "Titled Tuesday Blitz April 26 Early 2022"]
[White "O`Gorman, Tom"]
[Black "Safarli, Eltaj"]
[WhiteFideId "2508249"]
[BlackFideId "13402129"]
[WhiteElo "2247"]
[BlackElo "2634"]
[Result "0-1"]
[Round "02"]
[TimeControl "180+1"]
[Date "2022.04.26"]
[WhiteClock "0:00:12"]
[BlackClock "0:00:06"]

1. d4 {[%clk 0:03:00]}  Nf6 {[%clk 0:02:59]} 2. c4 {[%clk 0:03:00]}  g6 {[%clk 0:02:59]} 3. Nc3 {[%clk 0:03:00]}  d5 {[%clk 0:02:59]} 4. cxd5 {[%clk 0:03:01]}  Nxd5 {[%clk 0:02:57]} 5. e4 {[%clk 0:03:00]}  Nxc3 {[%clk 0:02:57]} 6. bxc3 {[%clk 0:03:01]}  Bg7 {[%clk 0:02:58]} 7. Nf3 {[%clk 0:03:01]}  c5 {[%clk 0:02:58]} 8. h3 {[%clk 0:03:01]}  O-O {[%clk 0:02:56]} 9. Be2 {[%clk 0:03:00]}  Nd7 {[%clk 0:02:49]} 10. Be3 {[%clk 0:02:58]}  Nf6 {[%clk 0:02:48]} 11. Qd3 {[%clk 0:02:49]}  e6 {[%clk 0:02:45]} 12. O-O {[%clk 0:02:46]}  b6 {[%clk 0:02:46]} 13. Nd2 {[%clk 0:02:37]}  Bb7 {[%clk 0:02:44]} 14. f3 {[%clk 0:02:37]}  Qc7 {[%clk 0:02:44]} 15. Rab1 {[%clk 0:02:25]}  Rfd8 {[%clk 0:02:43]} 16. Rfc1 {[%clk 0:02:22]}  Nh5 {[%clk 0:02:42]} 17. Qb5 {[%clk 0:02:14]}  Bc6 {[%clk 0:02:29]} 18. Qb2 {[%clk 0:02:07]}  Rd7 {[%clk 0:02:23]} 19. Nb3 {[%clk 0:02:00]}  Rad8 {[%clk 0:02:20]} 20. dxc5 {[%clk 0:01:59]}  Be5 {[%clk 0:01:56]} 21. cxb6 {[%clk 0:01:45]}  axb6 {[%clk 0:01:57]} 22. Nd4 {[%clk 0:01:42]}  Bh2+ {[%clk 0:01:48]} 23. Kf2 {[%clk 0:01:34]}  Ba4 {[%clk 0:01:41]} 24. Bb5 {[%clk 0:01:10]}  Bxb5 {[%clk 0:01:37]} 25. Qxb5 {[%clk 0:01:10]}  Qg3+ {[%clk 0:01:32]} 26. Kf1 {[%clk 0:01:08]}  Qh4 {[%clk 0:01:31]} 27. Ne2 {[%clk 0:01:04]}  Rd3 {[%clk 0:01:25]} 28. Bf2 {[%clk 0:01:02]}  Qf6 {[%clk 0:01:20]} 29. Qxb6 {[%clk 0:00:52]}  Rd2 {[%clk 0:01:14]} 30. Bd4 {[%clk 0:00:46]}  Qh4 {[%clk 0:01:09]} 31. Rd1 {[%clk 0:00:44]}  Rxe2 {[%clk 0:00:46]} 32. Kxe2 {[%clk 0:00:44]}  Ng3+ {[%clk 0:00:46]} 33. Ke3 {[%clk 0:00:39]}  Nh5 {[%clk 0:00:24]} 34. Rb5 {[%clk 0:00:17]}  Bf4+ {[%clk 0:00:22]} 35. Kd3 {[%clk 0:00:17]}  e5 {[%clk 0:00:22]} 36. Kc2 {[%clk 0:00:16]}  exd4 {[%clk 0:00:21]} 37. cxd4 {[%clk 0:00:17]}  Qf2+ {[%clk 0:00:21]} 38. Kb1 {[%clk 0:00:17]}  Ra8 {[%clk 0:00:15]} 39. Rb2 {[%clk 0:00:15]}  Qe3 {[%clk 0:00:14]} 40. d5 {[%clk 0:00:15]}  Qc3 {[%clk 0:00:13]} 41. d6 {[%clk 0:00:14]}  Rc8 {[%clk 0:00:13]} 42. a3 {[%clk 0:00:13]}  Nf6 {[%clk 0:00:08]} 43. d7 {[%clk 0:00:13]}  Nxd7 {[%clk 0:00:08]} 44. Rxd7 {[%clk 0:00:14]}  Be5 {[%clk 0:00:03]} 45. Rd8+ {[%clk 0:00:14]}  Rxd8 {[%clk 0:00:04]} 46. Qxd8+ {[%clk 0:00:14]}  Kg7 {[%clk 0:00:05]} 47. Qd2 {[%clk 0:00:14]}  Qxa3 {[%clk 0:00:04]} 48. Ra2 {[%clk 0:00:14]}  Qb3+ {[%clk 0:00:04]} 49. Kc1 {[%clk 0:00:14]}  Qc4+ {[%clk 0:00:04]} 50. Qc2 {[%clk 0:00:14]}  Bf4+ {[%clk 0:00:03]} 51. Kb1 {[%clk 0:00:14]}  Qf1+ {[%clk 0:00:04]} 52. Kb2 {[%clk 0:00:13]}  Be5+ {[%clk 0:00:04]} 53. Kb3 {[%clk 0:00:13]}  Qb5+ {[%clk 0:00:05]} 54. Ka3 {[%clk 0:00:14]}  Bd6+ {[%clk 0:00:05]} 55. Qc5 {[%clk 0:00:12]}  Bxc5# {[%clk 0:00:06]} 0-1


[Site "https://www.chess.com"]

[Event "Titled Tuesday Blitz April 26 Early 2022"]
[White "Odegov, Artem"]
[Black "Harshavardhan G B"]
[WhiteFideId "34183644"]
[BlackFideId "25059009"]
[WhiteElo "2286"]
[BlackElo "1831"]
[Result "0-1"]
[Round "02"]
[TimeControl "180+1"]
[Date "2022.04.26"]
[WhiteClock "0:00:04"]
[BlackClock "0:01:53"]

1. d4 {[%clk 0:03:00]}  Nf6 {[%clk 0:02:59]} 2. c4 {[%clk 0:03:01]}  e5 {[%clk 0:02:56]} 3. dxe5 {[%clk 0:03:01]}  Ng4 {[%clk 0:02:56]} 4. Bf4 {[%clk 0:03:01]}  Nc6 {[%clk 0:02:55]} 5. Nf3 {[%clk 0:03:01]}  Bb4+ {[%clk 0:02:55]} 6. Nc3 {[%clk 0:03:01]}  Qe7 {[%clk 0:02:53]} 7. Qd5 {[%clk 0:03:01]}  Bxc3+ {[%clk 0:02:47]} 8. bxc3 {[%clk 0:03:02]}  f6 {[%clk 0:02:47]} 9. exf6 {[%clk 0:03:02]}  Nxf6 {[%clk 0:02:48]} 10. Qd3 {[%clk 0:03:03]}  d6 {[%clk 0:02:48]} 11. g3 {[%clk 0:03:03]}  O-O {[%clk 0:02:48]} 12. Bg2 {[%clk 0:03:03]}  Bg4 {[%clk 0:02:48]} 13. O-O {[%clk 0:03:03]}  Rae8 {[%clk 0:02:48]} 14. e3 {[%clk 0:03:01]}  b6 {[%clk 0:02:47]} 15. Nd4 {[%clk 0:02:55]}  Ne5 {[%clk 0:02:46]} 16. Qc2 {[%clk 0:02:50]}  Kh8 {[%clk 0:02:44]} 17. Nc6 {[%clk 0:02:43]}  Qf7 {[%clk 0:02:39]} 18. c5 {[%clk 0:02:26]}  Nf3+ {[%clk 0:02:32]} 19. Kh1 {[%clk 0:02:08]}  Qh5 {[%clk 0:02:31]} 20. h4 {[%clk 0:02:06]}  bxc5 {[%clk 0:02:27]} 21. e4 {[%clk 0:00:25]}  Nxe4 {[%clk 0:02:20]} 22. Bc1 {[%clk 0:00:24]}  Qf5 {[%clk 0:02:09]} 23. Qa4 {[%clk 0:00:12]}  Bh3 {[%clk 0:02:00]} 24. Bb2 {[%clk 0:00:04]}  Bxg2+ {[%clk 0:01:54]} 25. Kxg2 {[%clk 0:00:05]}  Nxh4+ {[%clk 0:01:55]} 26. gxh4 {[%clk 0:00:05]}  Qg4+ {[%clk 0:01:54]} 27. Kh2 {[%clk 0:00:04]}  Qxh4+ {[%clk 0:01:55]} 28. Kg2 {[%clk 0:00:05]}  Qg4+ {[%clk 0:01:53]} 29. Kh2 {[%clk 0:00:04]}  Rf3 {[%clk 0:01:53]} 0-1


[Site "https://www.chess.com"]